bitfinex/quotes_ETHUSD_20251004
["timestamp","ask_amount","ask_price","bid_price","bid_amount"]
[1759554519266,2.22232273,4499.8,4499.7,11.265564]
[1759554519655,2.22237038,4499.7,4499.6,0.1112]
[1759554519882,2.22237038,4499.7,4499.6,2.6102]
[1759554523187,2.22252471,4499.4,4499.0,0.4539]
[1759554523353,2.22252471,4499.4,4499.2,2.4]
[1759554523549,2.22252471,4499.4,4499.1,2.66238532]
[1759554523550,2.22256795,4499.3,4499.1,0.16338532]
[1759554523753,2.22256795,4499.3,4499.2,2.499]
[1759554523992,0.3338,4499.7,4499.2,0.1112]
[1759554524192,4.19,4499.8,4499.2,2.499]
[1759554524193,2.22261497,4499.3,4499.2,2.499]
[1759554524365,0.445,4499.6,4499.0,0.1112]
[1759554524568,2.22256795,4499.3,4499.2,2.499]
[1759554524884,0.48900371,4499.3,4498.8,0.001]
[1759554525191,0.3458,4499.9,4498.9,2.499]
[1759554525192,2.22271615,4499.0,4498.9,2.499]
[1759554526294,0.3338,4499.7,4498.9,2.77277827]
[1759554526591,2.22271615,4499.0,4498.9,2.499]
[1759554526756,2.22271615,4499.0,4498.8,0.001]
[1759554526757,2.22276556,4498.9,4498.8,0.001]
[1759554526955,2.55656556,4498.9,4498.8,2.5]
[1759554527156,2.22276556,4498.9,4498.8,2.5]
[1759554528105,2.22276556,4498.9,4498.8,0.001]
[1759554528307,2.70069373,4498.9,4498.8,0.001]
[1759554528601,3.03449373,4498.9,4498.8,0.001]
[1759554528904,2.2229632,4498.5,4497.3,1e-08]
[1759554529076,2.2229632,4498.5,4497.4,0.4539]
[1759554529291,2.5567632,4498.5,4497.4,0.4539]
[1759554529493,3.03472859,4498.5,4497.4,0.4539]
[1759554530138,3.03472859,4498.5,4498.4,1.759]
[1759554530516,2.70092859,4498.5,4498.4,1.759]
[1759554531400,3.03472859,4498.5,4498.4,1.759]
[1759554532723,2.2229632,4498.5,4498.4,1.759]
[1759554532919,2.2229632,4498.5,4498.4,2.2184]
[1759554533231,0.08896055,4498.9,4498.4,1.759]
[1759554533443,0.3458,4499.9,4498.6,2.4]
[1759554533444,0.012,4499.9,4498.6,2.4]
[1759554533650,0.012,4499.9,4498.5,16.470399]
[1759554533651,2.58007625,4499.9,4498.7,0.48162864]
[1759554533946,0.3578,4499.9,4498.8,0.53996418]
[1759554534102,2.22243058,4499.6,4498.9,0.4594]
[1759554534320,2.22251404,4499.5,4499.0,2.5]
[1759554534524,0.012,4499.9,4499.1,0.4594]
[1759554534751,0.012,4499.9,4499.2,0.02222617]
[1759554534923,0.1112,4499.7,4499.2,0.02222617]
[1759554535112,0.1112,4499.7,4499.3,0.4594]
[1759554535310,0.1112,4499.7,4499.4,0.02222518]
[1759554535523,0.1112,4499.7,4499.4,0.4594]
[1759554535524,2.22247273,4499.5,4499.4,0.4594]
[1759554536038,2.22252811,4499.4,4499.1,0.4594]
[1759554536241,2.22252811,4499.4,4499.0,2.6112]
[1759554536242,0.1112,4499.7,4499.2,0.48162617]
[1759554536416,2.23431923,4499.9,4499.3,0.1112]
[1759554536417,2.34551923,4499.9,4499.3,0.1112]
[1759554536757,2.22232453,4499.8,4499.4,0.02222518]
[1759554536961,2.22232453,4499.8,4499.5,0.4594]
[1759554537168,2.22232453,4499.8,4499.4,0.02222518]
[1759554537169,2.22232453,4499.8,4499.6,2.9594]
[1759554537321,0.012,4499.9,4499.7,0.4816237]
[1759554537521,0.012,4499.9,4499.7,0.0222237]
[1759554537761,0.012,4499.9,4499.8,0.4594]
[1759554540339,0.012,4499.9,4499.8,0.76868237]
[1759554540536,0.012,4499.9,4499.8,20.31373255]
[1759554540731,0.012,4499.9,4499.8,22.71373255]
[1759554541182,0.012,4499.9,4499.8,27.78865354]
[1759554542057,0.012,4499.9,4499.8,8.78356754]
[1759554542259,0.012,4499.9,4499.8,6.02128237]
[1759554542462,0.012,4499.9,4499.8,24.91198837]
[1759554542670,0.012,4499.9,4499.8,25.17817428]
[1759554542854,0.012,4499.9,4499.8,27.67427354]
[1759554543164,0.012,4499.9,4499.8,30.28965354]
[1759554543960,0.012,4499.9,4499.8,28.06733255]
[1759554544559,0.012,4499.9,4499.8,30.28965354]
[1759554544774,0.012,4499.9,4499.8,28.06733255]
[1759554545148,0.012,4499.9,4499.8,8.79606064]
[1759554545349,0.012,4499.9,4499.8,27.80114664]
[1759554545551,0.012,4499.9,4499.8,30.02346763]
[1759554545877,0.012,4499.9,4499.8,27.80114664]
[1759554546033,0.012,4499.9,4499.8,30.28965354]
[1759554547144,0.012,4499.9,4499.8,11.28456754]
[1759554547345,0.012,4499.9,4499.8,30.28965354]
[1759554547742,0.012,4499.9,4499.8,27.52736837]
[1759554547942,0.012,4499.9,4499.8,9.71083437]
[1759554548142,0.012,4499.9,4499.8,20.16877637]
[1759554548478,0.012,4499.9,4499.8,22.38777637]
[1759554549143,0.012,4499.9,4499.8,29.74968936]
[1759554549342,0.012,4499.9,4499.8,27.52736837]
[1759554552586,0.012,4499.9,4499.8,23.60783237]
[1759554552754,0.012,4499.9,4499.8,29.74968936]
[1759554552952,0.012,4499.9,4499.8,27.52736837]
[1759554553486,0.012,4499.9,4499.8,29.74968936]
[1759554554492,0.012,4499.9,4499.8,27.52736837]
[1759554555083,0.012,4499.9,4499.8,8.52228237]
[1759554555253,0.012,4499.9,4499.8,27.52736837]
[1759554555684,0.012,4499.9,4499.8,29.74968936]
[1759554555989,0.012,4499.9,4499.8,24.32070437]
[1759554556167,0.012,4499.9,4499.8,27.52736837]
[1759554557299,0.012,4499.9,4499.8,7.037419]
[1759554558189,0.012,4499.9,4499.8,8.543966]
[1759554558775,0.012,4499.9,4499.8,4.901]
[1759554559603,0.012,4499.9,4499.8,7.247989]
[1759554559792,0.012,4499.9,4499.8,7.301083]
[1759554560195,0.012,4499.9,4499.8,7.733783]
[1759554560400,0.012,4499.9,4499.8,9.26937085]
[1759554560784,0.012,4499.9,4499.8,20.91224485]
[1759554561467,0.012,4499.9,4499.8,18.51882485]
[1759554561687,0.012,4499.9,4499.8,19.18179685]
[1759554561897,0.012,4499.9,4499.8,5.89662367]
[1759554562207,0.012,4499.9,4499.8,7.662464]
[1759554562908,0.012,4499.9,4499.8,15.706074]
[1759554563120,0.012,4499.9,4499.8,14.766833]
[1759554563485,0.012,4499.9,4499.8,15.03301891]
[1759554563878,0.012,4499.9,4499.8,23.41711791]
[1759554564186,0.012,4499.9,4499.8,28.19083615]
[1759554564516,0.012,4499.9,4499.8,28.39390715]
[1759554564806,0.012,4499.9,4499.8,30.01229015]
[1759554565107,0.012,4499.9,4499.8,27.78996916]
[1759554565406,0.012,4499.9,4499.8,27.52378325]
[1759554565778,0.012,4499.9,4499.8,26.58482625]
[1759554565977,0.012,4499.9,4499.8,26.66279225]
[1759554566204,0.012,4499.9,4499.8,28.65214824]
[1759554566697,0.012,4499.9,4499.8,30.01229015]
[1759554567276,0.012,4499.9,4499.8,30.12349015]
[1759554567701,0.012,4499.9,4499.8,11.11840415]
[1759554567907,0.012,4499.9,4499.8,25.62355018]
[1759554568089,0.012,4499.9,4499.8,25.35736427]
[1759554568494,0.012,4499.9,4499.8,27.57968526]
[1759554568910,0.012,4499.9,4499.8,25.35736427]
[1759554569217,0.012,4499.9,4499.8,27.57968526]
[1759554569384,0.012,4499.9,4499.8,29.85730424]
[1759554572027,0.012,4499.9,4499.8,30.12349015]
[1759554572233,0.012,4499.9,4499.8,30.2123817]
[1759554573024,2.22154384,4501.4,4499.8,30.2123817]
[1759554573025,0.01,4502.9,4499.9,3.57356418]
[1759554573226,0.01,4502.9,4502.0,2.22121653]
[1759554573401,0.01,4502.9,4502.2,2.4]
[1759554573608,0.01,4502.9,4502.4,2.4]
[1759554573815,0.01,4502.9,4502.6,2.4]
[1759554574128,0.01,4502.9,4502.7,2.52420889]
[1759554574292,0.3338,4502.8,4502.2,2.4]
[1759554574507,0.3338,4502.8,4502.4,2.4]
[1759554574738,0.3438,4502.9,4502.6,2.4]
[1759554575035,2.56460053,4502.9,4502.7,2.502]
[1759554575202,0.3338,4502.8,4502.7,4.902]
[1759554577098,0.3338,4502.8,4502.7,2.4]
[1759554577324,0.3338,4502.8,4502.7,4.902]
[1759554577523,2.55464036,4502.8,4502.7,4.902]
[1759554578405,2.55464036,4502.8,4502.7,2.4]
[1759554578609,2.55664036,4502.8,4502.7,4.902]
[1759554578811,2.55664036,4502.8,4502.7,2.502]
[1759554579105,0.002,4502.8,4502.7,2.502]
[1759554579431,2.22284036,4502.8,4502.7,2.502]
[1759554581712,0.002,4502.8,4502.7,2.502]
[1759554582304,2.22284036,4502.8,4502.7,2.502]
[1759554582521,0.002,4502.8,4502.7,2.502]
[1759554582941,0.002,4502.8,4502.7,2.6132]
[1759554583441,2.22284036,4502.8,4502.7,2.6132]
[1759554583646,0.002,4502.8,4502.7,2.6132]
[1759554584436,0.002,4502.8,4502.7,2.63540889]
[1759554584644,0.002,4502.8,4502.7,2.6132]
[1759554588213,0.002,4502.8,4502.7,5.4421]
[1759554588408,0.002,4502.8,4502.7,6.01249591]
[1759554588636,0.002,4502.8,4502.7,24.751396]
[1759554589236,0.002,4502.8,4502.7,25.384996]
[1759554589747,0.002,4502.8,4502.7,16.150354]
[1759554590044,0.002,4502.8,4502.7,18.625121]
[1759554590245,0.002,4502.8,4502.7,19.222457]
[1759554591163,0.002,4502.8,4502.7,21.23433391]
[1759554591345,0.002,4502.8,4502.7,21.35312627]
[1759554592134,0.002,4502.8,4502.7,25.65777427]
[1759554596142,0.002,4502.8,4502.7,6.65268827]
[1759554596344,0.002,4502.8,4502.7,25.65777427]
[1759554597274,0.002,4502.8,4502.7,27.87866395]
[1759554597638,0.002,4502.8,4502.7,25.92396018]
[1759554600255,0.002,4502.8,4502.7,27.690996]
[1759554602771,0.002,4502.8,4502.7,18.331914]
[1759554603437,0.002,4502.8,4502.7,20.534168]
[1759554603775,0.002,4502.8,4502.7,9.79819]
[1759554604478,0.002,4502.8,4502.7,2.81541]
[1759554604694,0.002,4502.8,4502.7,16.49356689]
[1759554604853,0.002,4502.8,4502.7,17.53372218]
[1759554605183,0.002,4502.8,4502.7,16.993758]
[1759554605384,0.002,4502.8,4502.7,17.75075]
[1759554605955,0.002,4502.8,4502.7,17.11715]
[1759554606350,0.002,4502.8,4502.7,5.20521]
[1759554607186,0.002,4502.8,4502.7,2.70421]
[1759554607495,0.3358,4502.8,4502.7,7.327413]
[1759554607995,0.002,4502.8,4502.7,7.327413]
[1759554608320,0.002,4502.8,4502.7,4.826413]
[1759554608321,2.22284036,4502.8,4502.7,4.826413]
[1759554608459,0.3358,4502.8,4502.7,4.902]
[1759554608653,2.55664036,4502.8,4502.7,2.4]
[1759554608853,2.55664036,4502.8,4502.7,4.902]
[1759554609048,2.55664036,4502.8,4502.7,2.4]
[1759554609352,2.55664036,4502.8,4502.7,4.902]
[1759554609576,2.55664604,4502.8,4502.0,4.618]
[1759554609778,0.3338,4502.7,4502.2,2.4]
[1759554610013,0.3338,4502.6,4502.4,2.4]
[1759554610193,0.002,4502.8,4502.5,2.502]
[1759554610402,0.002,4502.8,4501.6,1.63167575]
[1759554610679,2.2209413,4502.6,4501.8,2.4]
[1759554610903,2.2209413,4502.6,4502.0,2.4]
[1759554611076,2.55482648,4502.5,4502.1,4.760478]
[1759554611291,2.55485237,4502.4,4502.2,2.502]
[1759554611491,2.22105237,4502.4,4502.3,2.502]
[1759554611887,2.22110798,4502.3,4501.1,1.17850445]
[1759554612078,0.3338,4502.2,4501.2,21.18398627]
[1759554612306,0.3338,4502.2,4501.3,14.273573]
[1759554612504,0.3338,4502.2,4501.5,2.4]
[1759554612709,2.22113914,4502.2,4501.6,2.502]
[1759554613015,0.3338,4502.1,4501.7,4.43518]
[1759554613219,0.3338,4502.1,4501.8,4.53703]
[1759554613419,0.3338,4502.1,4501.8,2.502]
[1759554613620,0.3338,4502.1,4501.9,2.005583]
[1759554613826,0.3338,4502.1,4502.0,2.502]
[1759554614880,0.3338,4502.1,4502.0,2.6132]
[1759554618320,2.55498566,4502.1,4502.0,0.1112]
[1759554618528,2.55498566,4502.1,4502.0,2.6132]
[1759554619410,2.22118566,4502.1,4502.0,2.6132]
[1759554619940,2.22118566,4502.1,4502.0,0.1112]
[1759554620139,2.22118566,4502.1,4502.0,2.6132]
[1759554620319,2.55498566,4502.1,4502.0,2.6132]
[1759554623207,2.22118566,4502.1,4502.0,2.6132]
[1759554623557,2.22118566,4502.1,4502.0,0.1112]
[1759554623713,2.55498566,4502.1,4502.0,2.6132]
[1759554624248,2.22118566,4502.1,4502.0,2.6132]
[1759554624743,2.22129439,4501.9,4501.3,0.4429]
[1759554624943,2.22129439,4501.9,4501.8,0.1112]
[1759554625148,2.22129439,4501.9,4501.8,2.6132]
[1759554626052,2.22129439,4501.9,4501.8,0.1112]
[1759554626348,2.55509439,4501.9,4501.8,2.6132]
[1759554626506,2.22129439,4501.9,4501.8,2.6132]
[1759554629753,2.55493755,4502.2,4501.8,2.6132]
[1759554629754,2.2212384,4502.0,4501.8,2.6132]
[1759554630262,0.3338,4502.2,4501.8,2.6132]
[1759554630466,2.22123911,4502.0,4501.8,2.6132]
[1759554630665,0.3338,4502.2,4501.8,2.6132]
[1759554630843,2.22127117,4502.0,4501.8,2.6132]
[1759554631046,2.22118566,4502.1,4501.8,2.6132]
[1759554631235,2.22120477,4502.1,4501.8,2.6132]
[1759554631435,2.22127839,4502.0,4501.8,2.6132]
[1759554631649,2.22113633,4502.2,4501.8,2.6132]
[1759554631968,2.22128434,4501.9,4501.8,2.6132]
[1759554632139,2.2212712,4502.0,4501.8,2.6132]
[1759554632845,0.002,4502.1,4501.8,2.6132]
[1759554633043,0.002,4502.1,4501.8,0.1112]
[1759554633365,2.221235,4502.0,4501.9,2.502]
[1759554633880,2.5569976,4502.1,4501.9,2.502]
[1759554634078,2.2231976,4502.1,4501.9,2.502]
[1759554634480,2.221235,4502.0,4501.9,2.502]
[1759554636213,2.221235,4502.0,4501.9,2.501]
[1759554636408,2.22319928,4502.1,4501.9,2.501]
[1759554636707,2.221235,4502.0,4501.9,2.501]
[1759554637116,0.002,4502.1,4501.9,2.501]
[1759554637279,0.002,4502.1,4502.0,0.4411]
[1759554637486,0.002,4502.1,4502.0,26.69261162]
[1759554637703,0.002,4502.1,4502.0,26.93658518]
[1759554638436,0.002,4502.1,4502.0,27.57018518]
[1759554640343,0.002,4502.8,4502.5,2.85458833]
[1759554640566,0.002,4502.8,4502.5,27.93963143]
[1759554640861,0.002,4502.8,4502.5,27.85095018]
[1759554641835,0.002,4502.8,4502.5,21.69807418]
[1759554642425,0.002,4502.8,4502.5,27.09404618]
[1759554643410,0.002,4502.8,4502.5,27.10805418]
[1759554643631,0.002,4502.8,4502.5,29.38567316]
[1759554643833,0.002,4502.8,4502.5,28.38567316]
[1759554644029,0.002,4502.8,4502.5,15.10880525]
[1759554644347,0.002,4502.8,4502.5,9.53017998]
[1759554644516,0.002,4502.8,4502.5,7.693661]
[1759554645440,0.002,4502.8,4502.5,9.267732]
[1759554645608,0.002,4502.8,4502.5,0.1112]
[1759554645815,0.002,4502.8,4502.5,2.6152]
[1759554646016,0.002,4502.8,4502.5,5.135165]
[1759554646214,0.002,4502.8,4502.5,8.4897815]
[1759554646541,0.002,4502.8,4502.5,10.3967305]
[1759554646855,0.002,4502.8,4502.5,10.8378305]
[1759554647335,0.002,4502.8,4502.5,12.3305275]
[1759554647539,0.002,4502.8,4502.5,11.7298845]
[1759554648354,0.002,4502.8,4502.5,14.1386265]
[1759554648816,0.002,4502.8,4502.5,11.1935265]
[1759554649158,0.002,4502.8,4502.5,9.6921815]
[1759554649452,0.002,4502.8,4502.5,10.5195895]
[1759554650554,0.002,4502.8,4502.5,6.24620241]
[1759554650757,0.002,4502.8,4502.5,8.73798068]
[1759554650920,0.002,4502.8,4502.5,27.74306668]
[1759554651736,0.002,4502.8,4502.5,27.47688077]
[1759554652337,0.002,4502.8,4502.5,22.65265377]
[1759554652538,0.002,4502.8,4502.5,25.49898677]
[1759554653023,0.002,4502.8,4502.5,25.76517268]
[1759554653223,0.002,4502.8,4502.5,27.98616101]
[1759554653484,0.002,4502.8,4502.5,29.96405501]
[1759554654456,0.002,4502.8,4502.5,27.74306668]
[1759554654666,0.002,4502.8,4502.5,29.96405501]
[1759554655188,0.002,4502.8,4502.5,27.74306668]
[1759554657554,0.002,4502.8,4502.5,29.96405501]
[1759554658353,0.002,4502.8,4502.5,30.59765501]
[1759554661079,0.002,4502.8,4502.5,28.09365501]
[1759554661279,0.002,4502.8,4502.5,32.90365501]
[1759554661675,0.002,4502.8,4502.5,25.60648077]
[1759554661902,0.002,4502.8,4502.5,31.70044083]
[1759554662808,0.002,4502.8,4502.5,29.6914025]
[1759554663018,0.002,4502.8,4502.5,30.1427025]
[1759554663980,0.002,4502.8,4502.5,29.1582265]
[1759554664590,0.002,4502.8,4502.5,21.1041765]
[1759554664890,0.002,4502.8,4502.5,30.87494882]
[1759554665091,0.002,4502.8,4502.5,29.6914025]
[1759554665494,0.002,4502.8,4502.5,30.87550916]
[1759554665802,0.002,4502.8,4502.5,29.6914025]
[1759554666110,0.002,4502.8,4502.5,30.87550916]
[1759554666423,0.002,4502.8,4502.5,31.32680916]
[1759554667028,0.002,4502.8,4502.5,30.87550916]
[1759554667199,0.002,4502.8,4502.5,29.6914025]
[1759554668119,0.002,4502.8,4502.5,12.7496985]
[1759554668324,0.002,4502.8,4502.5,15.2526985]
[1759554668711,0.002,4502.8,4502.5,15.51888441]
[1759554668911,0.002,4502.8,4502.5,10.95250241]
[1759554669085,0.002,4502.8,4502.5,26.94155541]
[1759554669291,0.002,4502.8,4502.5,26.47160041]
[1759554669516,0.002,4502.8,4502.5,26.2054145]
[1759554670024,0.002,4502.8,4502.5,27.2292875]
[1759554670591,0.002,4502.8,4502.5,26.0928495]
[1759554670897,0.002,4502.8,4502.5,14.1858835]
[1759554671289,0.002,4502.8,4502.5,13.672367]
[1759554671830,0.002,4502.8,4502.5,9.5392]
[1759554672124,0.002,4502.8,4502.5,18.120314]
[1759554672329,0.002,4502.8,4502.5,15.337533]
[1759554672530,0.002,4502.8,4502.5,14.728262]
[1759554672829,0.002,4502.8,4502.5,8.774561]
[1759554672996,0.002,4502.8,4502.5,8.552977]
[1759554673199,0.002,4502.8,4502.5,12.24110108]
[1759554673941,0.002,4502.8,4502.5,8.41732408]
[1759554674092,0.002,4502.8,4502.5,15.73561608]
[1759554674628,0.3358,4502.6,4502.5,12.047492]
[1759554674791,0.3358,4502.6,4502.5,7.015782]
[1759554674990,0.3358,4502.6,4502.5,7.287486]
[1759554675299,0.3358,4502.6,4502.5,7.039776]
[1759554675636,0.002,4502.6,4502.5,7.039776]
[1759554675990,0.002,4502.6,4502.5,7.397484]
[1759554677016,0.002,4502.6,4502.5,5.0132]
[1759554677617,0.002,4502.6,4502.5,8.107892]
[1759554677920,0.002,4502.6,4502.5,5.0132]
[1759554678120,0.002,4502.6,4502.5,7.535283]
[1759554678787,0.002,4502.6,4502.5,7.060805]
[1759554678990,0.002,4502.6,4502.5,5.0132]
[1759554679300,0.002,4502.6,4502.5,7.054482]
[1759554680223,0.002,4502.6,4502.5,5.0132]
[1759554680591,0.002,4502.6,4502.5,8.066007]
[1759554680988,0.002,4502.6,4502.5,5.0132]
[1759554681612,0.002,4502.6,4502.5,9.958349]
[1759554681820,0.002,4502.6,4502.5,9.643647]
[1759554682127,0.002,4502.6,4502.5,9.929042]
[1759554683193,0.002,4502.6,4502.5,12.343885]
[1759554683733,0.002,4502.6,4502.5,7.782819]
[1759554684033,0.3358,4502.6,4502.5,5.0132]
[1759554685501,0.002,4502.6,4502.5,5.0132]
[1759554686637,0.002,4502.6,4502.5,7.59077]
[1759554686840,0.002,4502.6,4502.5,7.564365]
[1759554687817,0.002,4502.6,4502.5,8.23942]
[1759554688033,0.002,4502.6,4502.5,8.237563]
[1759554688338,0.002,4502.6,4502.5,8.328952]
[1759554688535,0.002,4502.6,4502.5,7.750765]
[1759554688740,0.002,4502.6,4502.5,7.590261]
[1759554688942,0.002,4502.6,4502.5,8.154211]
[1759554689162,0.002,4502.6,4502.5,8.307842]
[1759554689440,0.002,4502.6,4502.5,8.356061]
[1759554689746,0.002,4502.6,4502.5,7.05426]
[1759554689948,0.002,4502.6,4502.5,7.734856]
[1759554690146,0.002,4502.6,4502.5,7.759964]
[1759554690338,0.002,4502.6,4502.5,7.483613]
[1759554690713,0.002,4502.6,4502.5,2.5112]
[1759554691081,0.002,4502.6,4502.5,5.0132]
[1759554691484,0.002,4502.6,4502.5,7.836189]
[1759554691689,0.3358,4502.6,4502.5,5.0132]
[1759554691992,0.002,4502.6,4502.5,5.0132]
[1759554692281,0.002,4502.6,4502.5,2.5112]
[1759554692491,0.3358,4502.6,4502.5,2.5112]
[1759554692797,0.3358,4502.6,4502.5,2.502]
[1759554693895,0.59266399,4502.6,4502.5,2.502]
[1759554696055,0.59266399,4502.6,4502.1,0.1122]
[1759554696282,0.59266399,4502.6,4502.2,2.502]
[1759554696445,0.25886399,4502.6,4502.2,3.04189331]
[1759554696645,0.25886399,4502.6,4502.3,3.2488074]
[1759554696646,0.002,4502.6,4502.3,3.2488074]
[1759554696890,0.002,4502.6,4502.4,0.26618591]
[1759554697186,0.002,4502.6,4502.5,2.502]
[1759554700722,0.002,4502.6,4502.5,3.51499331]
[1759554701079,0.002,4502.6,4502.5,2.7757074]
[1759554701579,0.3358,4502.6,4502.5,2.502]
[1759554701928,0.002,4502.6,4502.5,2.504]
[1759554702092,0.002,4502.6,4502.5,2.9771]
[1759554704331,0.002,4502.6,4502.5,24.74668931]
[1759554704483,0.002,4502.6,4502.5,5.9485174]
[1759554705194,0.002,4502.6,4502.5,24.9536034]
[1759554705892,0.002,4502.6,4502.5,24.679896]
[1759554707214,0.002,4502.6,4502.5,22.175896]
[1759554707417,0.002,4502.6,4502.5,12.148409]
[1759554707713,0.002,4502.6,4502.5,13.985256]
[1759554708024,0.002,4502.6,4502.5,14.444356]
[1759554708224,0.002,4502.6,4502.5,13.656193]
[1759554708428,0.002,4502.6,4502.5,14.401477]
[1759554708777,0.002,4502.6,4502.5,11.897477]
[1759554708980,0.002,4502.6,4502.5,14.401477]
[1759554709385,0.002,4502.6,4502.5,14.570982]
[1759554709710,0.002,4502.6,4502.5,11.344477]
[1759554709924,0.002,4502.6,4502.5,13.848477]
[1759554710288,0.002,4502.6,4502.5,13.615737]
[1759554710790,0.002,4502.6,4502.5,14.502197]
[1759554710990,0.002,4502.6,4502.5,9.968797]
[1759554711232,0.002,4502.6,4502.5,9.051252]
[1759554711416,0.002,4502.6,4502.1,0.001]
[1759554711602,0.002,4502.6,4502.3,2.4]
[1759554711802,0.002,4502.6,4502.4,16.200019]
[1759554712128,0.002,4502.6,4502.5,17.130665]
[1759554712633,0.002,4502.6,4502.5,13.61809]
[1759554713128,0.002,4502.6,4502.5,12.51972]
[1759554713299,0.002,4502.6,4502.5,9.73032]
[1759554713743,0.002,4502.6,4502.5,8.065664]
[1759554714240,0.002,4502.6,4502.4,2.504]
[1759554715168,0.002,4502.6,4502.5,3.599082]
[1759554715735,0.002,4502.6,4502.1,0.001]
[1759554715932,0.002,4502.6,4502.2,2.505]
[1759554716244,0.3338,4502.5,4502.2,2.505]
[1759554716643,0.23661025,4502.6,4502.1,0.1122]
[1759554716845,0.1112,4502.2,4502.1,0.001]
[1759554717046,0.1112,4502.2,4502.1,2.506]
[1759554717047,2.33233633,4502.2,4502.1,2.506]
[1759554717392,2.66613633,4502.2,4502.1,2.506]
[1759554717577,0.93371303,4502.2,4502.1,2.506]
[1759554717729,1.60037895,4502.2,4502.1,2.506]
[1759554717931,3.82151528,4502.2,4502.1,2.506]
[1759554719330,1.60037895,4502.2,4502.1,2.506]
[1759554719771,0.77786592,4502.2,4502.1,2.506]
[1759554719975,0.1112,4502.3,4502.1,2.7797074]
[1759554720143,0.1112,4502.3,4502.1,3.2125074]
[1759554720854,0.002,4502.6,4502.2,0.53989331]
[1759554721212,0.1132,4502.6,4502.2,0.4328]
[1759554721410,2.33415563,4502.6,4502.1,2.506]
[1759554721569,0.66993226,4502.6,4502.1,2.506]
[1759554722910,0.66993226,4502.6,4502.1,0.001]
[1759554722911,2.22100897,4502.5,4502.1,0.001]
[1759554723212,3.22467375,4502.6,4502.2,2.505]
[1759554723376,2.89087375,4502.6,4502.2,2.505]
[1759554724574,2.22099283,4502.5,4502.2,2.505]
[1759554725113,0.66993226,4502.6,4502.2,2.505]
[1759554727004,2.89087186,4502.6,4502.2,2.505]
[1759554727608,0.66993226,4502.6,4502.2,2.505]
[1759554727805,0.1132,4502.6,4502.2,2.9378]
[1759554728311,0.1132,4502.6,4502.2,2.505]
[1759554728519,0.1132,4502.6,4502.3,0.4328]
[1759554729404,0.1132,4502.6,4502.2,2.505]
[1759554729603,0.1132,4502.6,4502.3,2.505]
[1759554730606,2.33414685,4502.6,4502.3,2.505]
[1759554730807,0.1132,4502.6,4502.3,2.505]
[1759554731502,0.1132,4502.6,4502.4,2.505]
[1759554731910,0.1132,4502.6,4502.1,0.001]
[1759554732237,2.66793948,4502.6,4502.2,2.504]
[1759554732549,2.22098833,4502.5,4502.2,2.504]
[1759554732719,0.447,4502.6,4502.1,0.001]
[1759554732720,0.1132,4502.6,4502.1,0.001]
[1759554733053,2.5548748,4502.4,4502.2,2.504]
[1759554733210,2.5548748,4502.4,4502.1,0.001]
[1759554733211,2.22113633,4502.2,4502.1,0.001]
[1759554733415,2.33233633,4502.2,4502.1,2.505]
[1759554733829,2.66613633,4502.2,4502.1,2.505]
[1759554734417,0.1112,4502.2,4502.1,2.505]
[1759554734815,2.33233633,4502.2,4502.1,2.505]
[1759554735024,2.86433483,4502.2,4502.1,2.505]
[1759554736256,2.75313483,4502.2,4502.1,2.505]
[1759554739457,0.5319985,4502.2,4502.1,2.505]
[1759554739658,2.22098833,4502.5,4502.1,2.505]
[1759554739836,2.88780077,4502.2,4502.1,2.505]
[1759554746275,2.99900077,4502.2,4502.1,2.505]
[1759554746476,3.52120545,4502.2,4502.1,2.505]
[1759554748564,3.52120545,4502.2,4502.1,2.9477]
[1759554748964,3.52120545,4502.2,4502.1,2.505]
[1759554751612,3.52120545,4502.2,4502.1,0.001]
[1759554751807,3.52120545,4502.2,4502.1,2.506]
[1759554755775,3.52120545,4502.2,4502.1,0.001]
[1759554756095,3.85500545,4502.2,4502.1,2.505]
[1759554757903,3.52120545,4502.2,4502.1,0.001]
[1759554758109,3.52120545,4502.2,4502.1,2.505]
[1759554758705,3.52320545,4502.2,4502.1,2.505]
[1759554759808,6.14580545,4502.2,4502.1,2.505]
[1759554760104,6.62465247,4502.2,4502.1,2.505]
[1759554762777,6.14580545,4502.2,4502.1,2.505]
[1759554763193,6.14580545,4502.2,4502.1,0.001]
[1759554763486,6.14580545,4502.2,4502.1,0.425]
[1759554764612,5.81200545,4502.2,4502.1,0.425]
[1759554769717,1.30206912,4502.2,4502.1,0.425]
[1759554769920,3.00100077,4502.2,4502.1,0.8677]
[1759554770154,0.77986444,4502.2,4502.1,0.8677]
[1759554770297,0.002,4502.2,4502.1,0.8677]
[1759554774812,0.002,4502.2,4502.1,3.80759331]
[1759554775012,0.002,4502.2,4502.1,4.29955264]
[1759554775215,0.002,4502.2,4502.1,4.32176449]
[1759554775719,0.002,4502.2,4502.1,23.32685049]
[1759554775921,0.002,4502.2,4502.1,23.30463864]
[1759554778852,0.002,4502.2,4502.1,4.29955264]
[1759554779049,0.002,4502.2,4502.1,4.32176449]
[1759554779222,0.002,4502.2,4502.1,23.32685049]